fUSD/lending_fUSD_20240419
["ID","MTS","AMOUNT","RATE_DAILY","PERIOD"]
[322958180,1713547832315,-290.81414345,0.000112,2]
[322958182,1713547832325,-155.0,0.00011203,2]
[322958183,1713547832334,-2998.8492905,0.00011203,2]
[322958185,1713547832343,-410.32117245,0.00011204,2]
[322958187,1713547832354,-3717.06365958,0.00011206,2]
[322958189,1713547832365,-625.71776094,0.00011206,2]
[322958241,1713547833072,-283.31314188,0.00011206,2]
[322958249,1713547833146,-858.49621984,0.00011206,2]
[322958251,1713547833158,-5109.53588355,0.00011206,2]
[322958253,1713547833167,-152.68,0.00011218,2]
[322958255,1713547833176,-374.22,0.0001122,2]
[322958257,1713547833186,-160.57,0.00011231,2]
[322958259,1713547833195,-1577.21,0.00011256,2]
[322958261,1713547833204,-160.57,0.00011279,2]
[322958263,1713547833214,-150.99,0.00011279,2]
[322958265,1713547833223,-499.99,0.00011279,2]
[322958267,1713547833233,-161.02475919,0.00011317,2]
[322958269,1713547833243,-160.57,0.00011328,2]
[322958271,1713547833252,-160.57,0.00011377,2]
[322958273,1713547833262,-160.57,0.00011426,2]
[322958275,1713547833271,-463.14484795,0.00011467,2]
[322958277,1713547833280,-160.57,0.00011474,2]
[322958279,1713547833289,-1076.73,0.00011508,2]
[322958281,1713547833298,-160.57,0.00011523,2]
[322958283,1713547833307,-1350.93200741,0.00011568,2]
[322958286,1713547833318,-536.64463076,0.00011569,2]
[322958288,1713547833327,-160.57,0.00011572,2]
[322958289,1713547833337,-160.57,0.00011621,2]
[322958291,1713547833350,-160.57,0.0001167,2]
[322958294,1713547833360,-160.57,0.00011718,2]
[322958295,1713547833369,-160.57,0.00011767,2]
[322958297,1713547833378,-160.57,0.00011816,2]
[322958300,1713547833387,-1000.0,0.00011822,2]
[322958301,1713547833398,-176.58,0.00011825,2]
[322958303,1713547833408,-508.53209349,0.00012,2]
[322958306,1713547833422,-537.35627901,0.00012108,2]
[322958308,1713547833432,-346.07,0.00012512,2]
[322958310,1713547833441,-1220.67551642,0.000126,2]
[322958311,1713547833451,-1097.4114,0.00012639,2]
[322958313,1713547833460,-655.7476,0.00012639,2]
[322958315,1713547833470,-206.06084279,0.00012641,2]
[322958316,1713547833480,-772.4134,0.00012646,2]
[322958317,1713547833489,-209.8678,0.0001265,2]
[322958318,1713547833498,-7128.5559,0.0001265,2]
[322958319,1713547833508,-1000.0,0.00012699,2]
[322958320,1713547833518,-283.31426977,0.00012724,2]
[322958321,1713547833527,-993.50108797,0.00012734,2]
[322958322,1713547833537,-176473.07629953,0.00012734,2]
[322958323,1713547833549,-499.72856,0.00012734,2]
[322958324,1713547833578,-647.445,0.00012734,2]
[322958325,1713547833607,-1496.52047499,0.00012734,2]
[322958326,1713547833619,-3500.73242404,0.00012734,2]
[322958327,1713547833630,-400.0,0.00012734,2]
[322958341,1713547837938,-6843.9,0.00012733,2]
[322958342,1713547837949,-283.43058592,0.00012733,2]
[322958362,1713547838424,-117342.79341134,0.00012733,2]
[322958365,1713547838435,-2434.75981018,0.00012733,2]
[322958367,1713547838446,-1814.56851,0.00012733,2]
[322958369,1713547838458,-424.88308538,0.00012733,2]
[322958387,1713547840230,-353.33450113,0.00012733,2]
[322958388,1713547840241,-646.28503229,0.00012733,2]
[322958389,1713547840253,-415833.16414155,0.00012733,2]
[322958390,1713547840263,-502347.70216809,0.00012734,2]
[322958391,1713547840272,-1241.03910676,0.00012735,2]
[322958392,1713547840281,-262.16181551,0.00012735,2]
[322958393,1713547840290,-469.30111907,0.00012738,2]
[322958394,1713547840299,-190.0,0.00012739,2]
[322958395,1713547840309,-211.73980717,0.00012739,2]
[322958396,1713547840318,-201.64702608,0.00012741,2]
[322958397,1713547840327,-161.35607132,0.00012741,2]
[322958398,1713547840336,-1000.0,0.00012742,2]
[322958400,1713547840345,-155.64042765,0.00012742,2]
[322958402,1713547840358,-164.37921201,0.00012746,2]
[322958403,1713547840367,-206.61223645,0.00012746,2]
[322958404,1713547840377,-378.73208926,0.00012746,2]
[322958405,1713547840387,-186.96529284,0.00012746,2]
[322958406,1713547840397,-155.0,0.00012746,2]
[322958408,1713547840407,-709.0836062,0.00012746,2]
[322958410,1713547840419,-156.49763564,0.00012747,2]
[322958412,1713547840429,-687.01055003,0.00012747,2]
[322958414,1713547840438,-192.56367709,0.00012747,2]
[322958417,1713547840448,-2776.30392158,0.00012747,2]
[322958419,1713547840459,-769.70909584,0.00012747,2]
[322958421,1713547840468,-214.00741216,0.00012747,2]
[322958423,1713547840477,-220.766852,0.00012748,2]
[322958424,1713547840486,-155.0,0.00012748,2]
[322958425,1713547840496,-200.07852027,0.00012748,2]
[322958426,1713547840505,-309.35986859,0.00012748,2]
[322958427,1713547840514,-235.82557035,0.00012748,2]
[322958428,1713547840524,-161.02475918,0.0001275,2]
[322958429,1713547840533,-1695.71794352,0.0001275,2]
[322958430,1713547840542,-192.99208605,0.0001275,2]
[322958431,1713547840551,-292.40055351,0.0001275,2]
[322958432,1713547840560,-2226.16534643,0.0001275,2]
[322958433,1713547840569,-79649.3102,0.0001275,2]
[322958434,1713547840578,-2577.8971,0.0001275,2]
[322958435,1713547840588,-366.7084,0.0001275,2]
[322958436,1713547840597,-7019.8371,0.0001275,2]
[322958437,1713547840612,-1039.10867807,0.00012786,2]
[322958438,1713547840621,-552.32195113,0.00012792,2]
[322958439,1713547840630,-204.84988552,0.00012796,2]
[322958440,1713547840639,-194.24312844,0.00012797,2]
[322958441,1713547840648,-156.64047506,0.00012798,2]
[322958442,1713547840657,-348.58580176,0.00012798,2]
[322958443,1713547840666,-271.59951734,0.00012798,2]
[322958444,1713547840675,-160.51478126,0.00012798,2]
[322958445,1713547840685,-308.32917717,0.00012798,2]
[322958446,1713547840694,-4401.60261938,0.00012798,2]
[322958447,1713547840704,-155.39161747,0.00012798,2]
[322958448,1713547840714,-267.09258882,0.00012798,2]
[322958449,1713547840723,-165.55205458,0.00012798,2]
[322958450,1713547840732,-166.42861037,0.00012798,2]
[322958451,1713547840742,-194.01529019,0.00012798,2]
[322958452,1713547840752,-155.67107352,0.00012798,2]
[322958453,1713547840762,-155.0,0.00012798,2]
[322958454,1713547840771,-155.0,0.00012798,2]
[322958455,1713547840780,-313.58324232,0.00012798,2]
[322958456,1713547840790,-155.0,0.00012798,2]
[322958457,1713547840799,-155.0,0.00012798,2]
[322958458,1713547840807,-486.33746817,0.00012798,2]
[322958459,1713547840818,-155.0,0.00012798,2]
[322958460,1713547840828,-208.96057669,0.00012798,2]
[322958461,1713547840837,-361.69441178,0.00012798,2]
[322958462,1713547840847,-300.20034812,0.00012798,2]
[322958463,1713547840859,-249.59914331,0.00012798,2]
[322958464,1713547840868,-453.91280758,0.00012798,2]
[322958465,1713547840877,-839.64535407,0.00012798,2]
[322958466,1713547840886,-258.2923,0.00012798,2]
[322958467,1713547840895,-655.2559921,0.00012798,2]
[322958468,1713547840905,-408.04988804,0.00012798,2]
[322958469,1713547840914,-600.0,0.00012798,2]
[322958470,1713547840923,-277.78803159,0.00012799,2]
[322958471,1713547840932,-245.75879176,0.00012799,2]
[322958472,1713547840942,-30434.44247912,0.00012799,2]
[322958473,1713547840952,-3060029.50866185,0.000128,2]
[322958474,1713547840962,-40024.2792,0.0001285,2]
[322958475,1713547840971,-245000.0,0.0001285,2]
[322958476,1713547841183,-77313.9892,0.0001285,2]
[322958477,1713547841192,-500.0,0.000129,2]
[322958478,1713547841201,-181.11192668,0.000129,2]
[322958479,1713547841211,-342.00760277,0.000129,2]
[322958480,1713547841219,-342.00760277,0.00012905,2]
[322958481,1713547841229,-27054.25145684,0.00013,2]
[322958482,1713547841238,-150.0,0.00013041,2]
[322958483,1713547841247,-150.0,0.00013041,2]
[322958484,1713547841256,-342.00760277,0.00013112,2]
[322958485,1713547841266,-303.13,0.00013151,2]
[322958486,1713547841275,-418.88,0.00013151,2]
[322958487,1713547841285,-150.84,0.00013151,2]
[322958488,1713547841294,-150.0,0.00013151,2]
[322958489,1713547841304,-521.73,0.00013151,2]
[322958490,1713547841313,-418.87,0.00013151,2]
[322958491,1713547841323,-150.0,0.00013151,2]
[322958492,1713547841332,-150.0,0.00013151,2]
[322958493,1713547841342,-150.0,0.00013151,2]
[322958494,1713547841354,-150.0,0.00013151,2]
[322958495,1713547841363,-418.87,0.00013151,2]
[322958496,1713547841372,-150.0,0.00013151,2]
[322958497,1713547841382,-150.0,0.00013151,2]
[322958498,1713547841391,-150.0,0.00013151,2]
[322958499,1713547841400,-521.73,0.00013151,2]
[322958500,1713547841410,-150.0,0.00013151,2]
[322958501,1713547841422,-325.2,0.00013151,2]
[322958502,1713547841431,-150.0,0.00013151,2]
[322958503,1713547841441,-150.0,0.00013151,2]
[322958504,1713547841450,-150.0,0.00013151,2]
[322958505,1713547841462,-162.67,0.00013151,2]
[322958506,1713547841472,-150.0,0.00013151,2]
[322958507,1713547841481,-150.0,0.00013151,2]
[322958508,1713547841490,-418.87,0.00013151,2]
[322958509,1713547841501,-150.0,0.00013151,2]
[322958510,1713547841511,-150.0,0.00013151,2]
[322958511,1713547841520,-521.73,0.00013151,2]
[322958512,1713547841529,-162.67,0.00013151,2]
[322958513,1713547841538,-150.0,0.00013151,2]
[322958514,1713547841547,-350.11,0.00013151,2]
[322958515,1713547841556,-150.0,0.00013151,2]
[322958516,1713547841566,-418.87,0.00013151,2]
[322958517,1713547841575,-150.0,0.00013151,2]
[322958518,1713547841584,-150.0,0.00013151,2]
[322958519,1713547841593,-150.0,0.00013151,2]
[322958520,1713547841606,-521.73,0.00013151,2]
[322958521,1713547841615,-150.0,0.00013151,2]
[322958522,1713547841625,-350.23,0.00013151,2]
[322958523,1713547841634,-162.67,0.00013151,2]
[322958524,1713547841643,-521.73,0.00013151,2]
[322958525,1713547841653,-418.87,0.00013151,2]
[322958526,1713547841662,-150.0,0.00013151,2]
[322958527,1713547841671,-150.0,0.00013151,2]
[322958528,1713547841681,-162.67,0.00013151,2]
[322958529,1713547841690,-332.41,0.00013151,2]
[322958530,1713547841699,-350.23,0.00013151,2]
[322958531,1713547841709,-150.0,0.00013151,2]
[322958532,1713547841717,-833.68,0.00013151,2]
[322958533,1713547841726,-200.88,0.00013151,2]
[322958534,1713547841735,-150.0,0.00013151,2]
[322958535,1713547841745,-521.73,0.00013151,2]
[322958536,1713547841756,-350.23,0.00013151,2]
[322958537,1713547841765,-300.0,0.00013151,2]
[322958538,1713547841774,-150.0,0.00013151,2]
[322958539,1713547841787,-162.67,0.00013151,2]
[322958540,1713547841802,-160.73,0.00013151,2]
[322958541,1713547841813,-521.73,0.00013151,2]
[322958542,1713547841822,-150.0,0.00013151,2]
[322958543,1713547841832,-350.23,0.00013151,2]
[322958544,1713547841841,-150.0,0.00013151,2]
[322958545,1713547841850,-150.0,0.00013151,2]
[322958546,1713547841860,-350.23,0.00013151,2]
[322958547,1713547841870,-521.73,0.00013151,2]
[322958548,1713547841879,-150.0,0.00013151,2]
[322958549,1713547841888,-696.66,0.00013151,2]
[322958550,1713547841896,-150.0,0.00013151,2]
[322958551,1713547841906,-1000.0,0.000133,2]
[322958552,1713547841915,-176.58,0.00013303,2]
[322958553,1713547841924,-342.00760277,0.00013319,2]
[322958554,1713547841934,-1967.0,0.000134,2]
[322958555,1713547841943,-1273.0,0.000134,2]
[322958556,1713547841953,-1000.0,0.000134,2]
[322958557,1713547841962,-1000.0,0.000134,2]
[322958558,1713547841973,-1000.0,0.000134,2]
[322958559,1713547841982,-500.0,0.00013425,2]
[322958560,1713547841992,-1000.0,0.00013455,2]
[322958561,1713547842001,-998.84811,0.0001346,2]
[322958562,1713547842011,-292956.07634925,0.0001349,2]
[322958563,1713547842020,-342.00760277,0.00013525,2]
[322958564,1713547842030,-1551.0,0.00013534,2]
[322958565,1713547842040,-624.0,0.00013534,2]
[322958566,1713547842049,-251.36502565,0.0001355,2]
[322958567,1713547842059,-176.72738802,0.00013561,2]
[322958568,1713547842068,-1152.0,0.00013565,2]
[322958569,1713547842077,-8507.77,0.00013581,2]
[322958570,1713547842086,-1000.0,0.00013588,2]
[322958571,1713547842096,-500.0,0.00013588,2]
[322958572,1713547842108,-1000.0,0.00013589,2]
[322958573,1713547842117,-2600.78644205,0.0001359,2]
[322958574,1713547842127,-438.73221206,0.00013596,2]
[322958575,1713547842137,-25448.16585636,0.00013597,2]
[322958576,1713547842146,-10000.0,0.00013598,2]
[322958577,1713547842156,-150.0,0.00013623,2]
[322958578,1713547842165,-652.5349,0.0001363,2]
[322958579,1713547842174,-150.0,0.00013675,2]
[322958580,1713547842184,-966.55573744,0.00013687,2]
[322958581,1713547842193,-155.0,0.00013687,2]
[322958582,1713547842202,-6192.46377433,0.00013687,2]
[322958583,1713547842211,-215.90469682,0.00013687,2]
[322958584,1713547842220,-155.0,0.00013687,2]
[322958585,1713547842229,-155.09732717,0.00013687,2]
[322958586,1713547842238,-155.0,0.00013687,2]
[322958587,1713547842247,-155.0,0.00013687,2]
[322958588,1713547842257,-155.0,0.00013687,2]
[322958589,1713547842266,-3901.00734029,0.00013687,2]
[322958590,1713547842276,-155.0,0.00013687,2]
[322958591,1713547842285,-305.0,0.00013687,2]
[322958592,1713547842295,-157.14910837,0.00013687,2]
[322958593,1713547842304,-155.0,0.00013687,2]
[322958594,1713547842313,-287.6377139,0.00013687,2]
[322958595,1713547842322,-1981.32093739,0.00013688,2]
[322958596,1713547842331,-479.6764044,0.00013688,2]
[322958597,1713547842341,-155.0,0.00013688,2]
[322958598,1713547842350,-786.43640324,0.00013688,2]
[322958599,1713547842362,-9785.405363,0.00013688,2]
[322958600,1713547842371,-3360.6191356,0.00013688,2]
[322958601,1713547842380,-39940.163172,0.00013688,2]
[322958602,1713547842390,-961510.55784186,0.0001369,4]
[322958603,1713547842399,-2919.71390676,0.00013697,2]
[322958604,1713547842409,-500.0,0.00013698,2]
[322958605,1713547842422,-343.69368275,0.00013698,2]
[322958606,1713547842431,-500.0,0.00013698,2]
[322958607,1713547842441,-500.0,0.00013698,2]
[322958608,1713547842450,-500.0,0.00013698,2]
[322958609,1713547842459,-500.0,0.00013698,2]
[322958610,1713547842469,-496.75865701,0.00013698,2]
[322958611,1713547842478,-495.88008955,0.00013698,2]
[322958612,1713547842487,-250.50183226,0.00013698,2]
[322958613,1713547842500,-500.0,0.00013698,2]
[322958614,1713547842509,-526.51897458,0.00013698,2]
[322958615,1713547842518,-500.0,0.00013698,2]
[322958616,1713547842528,-500.0,0.00013698,2]
[322958617,1713547842537,-510.10600409,0.00013698,2]
[322958618,1713547842546,-500.0,0.00013698,2]
[322958619,1713547842556,-500.0,0.00013698,2]
[322958620,1713547842565,-2110.51,0.00013698,2]
[322958621,1713547842575,-587.44,0.00013698,2]
[322958622,1713547842584,-500.0,0.00013698,2]
[322958623,1713547842594,-885.07,0.00013698,2]
[322958624,1713547842607,-533.25,0.00013698,2]
[322958625,1713547842616,-500.0,0.00013698,2]
[322958626,1713547842626,-500.0,0.00013698,2]
[322958627,1713547842635,-588.52,0.00013698,2]
[322958628,1713547842645,-610.80270389,0.00013698,2]
[322958630,1713547842656,-500.0,0.00013698,2]
[322958632,1713547842665,-500.0,0.00013698,2]
[322958634,1713547842675,-688.61,0.00013698,2]
[322958635,1713547842685,-500.0,0.00013698,2]
[322958636,1713547842695,-500.0,0.00013698,2]
[322958637,1713547842705,-1128.42,0.00013698,2]
[322958639,1713547842714,-1405.03,0.00013698,2]
[322958640,1713547842724,-676.86,0.00013698,2]
[322958642,1713547842733,-507.93,0.00013698,2]
[322958644,1713547842742,-1724.21,0.00013698,2]
[322958646,1713547842751,-500.0,0.00013698,2]
[322958648,1713547842761,-500.0,0.00013698,2]
[322958650,1713547842770,-853.04,0.00013698,2]
[322958652,1713547842780,-500.0,0.00013698,2]
[322958654,1713547842790,-1185.05,0.00013698,2]
[322958656,1713547842799,-500.0,0.00013698,2]
[322958658,1713547842809,-500.0,0.00013698,2]
[322958660,1713547842819,-500.0,0.00013698,2]
[322958662,1713547842829,-868.94,0.00013698,2]
[322958664,1713547842839,-500.0,0.00013698,2]
[322958666,1713547842848,-649.32,0.00013698,2]
[322958668,1713547842860,-234.72974781,0.00013698,2]
[322958670,1713547842869,-500.0,0.00013698,2]
[322958673,1713547842879,-783.57,0.00013698,2]
[322958676,1713547842888,-500.0,0.00013698,2]
[322958678,1713547842897,-945.56,0.00013698,2]
[322958681,1713547842907,-213.48762398,0.00013698,2]
[322958685,1713547842916,-2494.46,0.00013698,2]
[322958686,1713547842924,-500.0,0.00013698,2]
[322958689,1713547842934,-636.73,0.00013698,2]
[322958692,1713547842943,-500.0,0.00013698,2]
[322958695,1713547842953,-500.0,0.00013698,2]
[322958698,1713547842962,-500.0,0.00013698,2]
[322958701,1713547842972,-500.0,0.00013698,2]
[322958704,1713547842981,-500.0,0.00013698,2]
[322958706,1713547842990,-859.12,0.00013698,2]
[322958708,1713547843000,-500.0,0.00013698,2]
[322958710,1713547843010,-500.0,0.00013698,2]
[322958711,1713547843019,-500.0,0.00013698,2]
[322958712,1713547843028,-690.43,0.00013698,2]
[322958713,1713547843038,-1352.48,0.00013698,2]
[322958714,1713547843047,-720.67,0.00013698,2]
[322958715,1713547843057,-823.18,0.00013698,2]
[322958717,1713547843066,-1996.03,0.00013698,2]
[322958719,1713547843075,-500.0,0.00013698,2]
[322958720,1713547843084,-686.86,0.00013698,2]
[322958722,1713547843094,-1738.27,0.00013698,2]
[322958724,1713547843104,-791.6,0.00013698,2]
[322958726,1713547843113,-500.0,0.00013698,2]
[322958728,1713547843122,-693.35,0.00013698,2]
[322958730,1713547843131,-1572.34,0.00013698,2]
[322958732,1713547843141,-500.0,0.00013698,2]
[322958734,1713547843150,-500.0,0.00013698,2]
[322958736,1713547843159,-500.0,0.00013698,2]
[322958738,1713547843168,-508.11,0.00013698,2]
[322958740,1713547843177,-500.0,0.00013698,2]
[322958742,1713547843187,-818.65,0.00013698,2]
[322958744,1713547843197,-500.0,0.00013698,2]
[322958746,1713547843207,-813.18,0.00013698,2]
[322958748,1713547843217,-500.0,0.00013698,2]
[322958750,1713547843227,-500.0,0.00013698,2]
[322958751,1713547843236,-734.58,0.00013698,2]
[322958753,1713547843245,-500.0,0.00013698,2]
[322958755,1713547843256,-500.0,0.00013698,2]
[322958757,1713547843266,-1007.18,0.00013698,2]
[322958759,1713547843277,-702.98,0.00013698,2]
[322958761,1713547843286,-500.0,0.00013698,2]
[322958763,1713547843295,-500.0,0.00013698,2]
[322958765,1713547843304,-1109.36,0.00013698,2]
[322958767,1713547843313,-953.8,0.00013698,2]
[322958768,1713547843322,-732.08,0.00013698,2]
[322958770,1713547843331,-500.0,0.00013698,2]
[322958772,1713547843340,-587.33,0.00013698,2]
[322958774,1713547843351,-500.0,0.00013698,2]
[322958776,1713547843360,-500.0,0.00013698,2]
[322958778,1713547843369,-500.0,0.00013698,2]
[322958779,1713547843378,-500.0,0.00013698,2]
[322958781,1713547843387,-179.60671853,0.00013698,2]
[322958782,1713547843396,-636.51,0.00013698,2]
[322958783,1713547843405,-500.0,0.00013698,2]
[322958784,1713547843415,-533.92,0.00013698,2]
[322958785,1713547843427,-500.0,0.00013698,2]
[322958786,1713547843436,-616.51,0.00013698,2]
[322958787,1713547843446,-760.02,0.00013698,2]
[322958788,1713547843455,-633.07,0.00013698,2]
[322958789,1713547843466,-500.0,0.00013698,2]
[322958790,1713547843475,-500.0,0.00013698,2]
[322958791,1713547843484,-500.0,0.00013698,2]
[322958792,1713547843494,-500.0,0.00013698,2]
[322958793,1713547843504,-731.74,0.00013698,2]
[322958794,1713547843513,-799.71,0.00013698,2]
[322958795,1713547843523,-500.0,0.00013698,2]
[322958796,1713547843533,-1421.13,0.00013698,2]
[322958797,1713547843542,-779.79,0.00013698,2]
[322958798,1713547843552,-1371.73,0.00013698,2]
[322958799,1713547843563,-500.0,0.00013698,2]
[322958800,1713547843572,-163.06568749,0.00013698,2]
[322958801,1713547843582,-1433.68,0.00013698,2]
[322958803,1713547843591,-500.0,0.00013698,2]
[322958805,1713547843603,-500.0,0.00013698,2]
[322958807,1713547843612,-500.0,0.00013698,2]
[322958809,1713547843621,-611.22,0.00013698,2]
[322958811,1713547843631,-500.0,0.00013698,2]
[322958812,1713547843640,-587.6,0.00013698,2]
[322958813,1713547843650,-802.08,0.00013698,2]
[322958814,1713547843660,-800.51,0.00013698,2]
[322958815,1713547843669,-570.42,0.00013698,2]
[322958816,1713547843679,-545.49,0.00013698,2]
[322958817,1713547843688,-622.53,0.00013698,2]
[322958818,1713547843698,-894.82,0.00013698,2]
[322958819,1713547843707,-665.31,0.00013698,2]
[322958820,1713547843716,-500.0,0.00013698,2]
[322958821,1713547843725,-500.0,0.00013698,2]
[322958822,1713547843734,-248.4355169,0.00013698,2]
[322958823,1713547843744,-500.0,0.00013698,2]
[322958824,1713547843753,-500.0,0.00013698,2]
[322958825,1713547843763,-500.0,0.00013698,2]
[322958826,1713547843772,-500.0,0.00013698,2]
[322958827,1713547843782,-1548.19,0.00013698,2]
[322958828,1713547843791,-500.0,0.00013698,2]
[322958829,1713547843800,-1402.68,0.00013698,2]
[322958830,1713547843812,-696.4,0.00013698,2]
[322958831,1713547843822,-500.0,0.00013698,2]
[322958832,1713547843833,-500.0,0.00013698,2]
[322958833,1713547843842,-667.78,0.00013698,2]
[322958834,1713547843853,-1817.86,0.00013698,2]
[322958835,1713547843863,-1854.53,0.00013698,2]
[322958836,1713547843872,-1323.45,0.00013698,2]
[322958837,1713547843881,-500.0,0.00013698,2]
[322958838,1713547843890,-151.0,0.00013698,2]
[322958839,1713547843899,-500.0,0.00013698,2]
[322958840,1713547843909,-500.0,0.00013698,2]
[322958841,1713547843918,-657.97,0.00013698,2]
[322958842,1713547843927,-500.0,0.00013698,2]
[322958843,1713547843936,-500.0,0.00013698,2]
[322958844,1713547843945,-500.0,0.00013698,2]
[322958845,1713547843954,-500.0,0.00013698,2]
[322958846,1713547843963,-500.0,0.00013698,2]
[322958847,1713547843972,-500.0,0.00013698,2]
[322958848,1713547843981,-500.0,0.00013698,2]
[322958849,1713547843990,-692.84,0.00013698,2]
[322958850,1713547844000,-500.0,0.00013698,2]
[322958851,1713547844009,-500.0,0.00013698,2]
[322958852,1713547844018,-525.97,0.00013698,2]
[322958853,1713547844027,-510.55,0.00013698,2]
[322958854,1713547844036,-500.0,0.00013698,2]
[322958855,1713547844045,-951.28,0.00013698,2]
[322958856,1713547844054,-500.0,0.00013698,2]
[322958857,1713547844063,-839.77,0.00013698,2]
[322958858,1713547844074,-500.0,0.00013698,2]
[322958859,1713547844085,-1185.12,0.00013698,2]
[322958860,1713547844095,-2157.71,0.00013698,2]
[322958861,1713547844108,-500.0,0.00013698,2]
[322958862,1713547844118,-500.0,0.00013698,2]
[322958863,1713547844127,-1409.98,0.00013698,2]
[322958864,1713547844137,-500.0,0.00013698,2]
[322958865,1713547844147,-1042.32,0.00013698,2]
[322958866,1713547844157,-1175.16,0.00013698,2]
[322958867,1713547844166,-848.63,0.00013698,2]
[322958868,1713547844175,-1187.74,0.00013698,2]
[322958869,1713547844185,-500.0,0.00013698,2]
[322958870,1713547844194,-1924.82,0.00013698,2]
[322958871,1713547844203,-500.0,0.00013698,2]
[322958872,1713547844213,-500.0,0.00013698,2]
[322958873,1713547844222,-1021.09,0.00013698,2]
[322958874,1713547844231,-500.0,0.00013698,2]
[322958875,1713547844241,-1045.54,0.00013698,2]
[322958876,1713547844250,-500.0,0.00013698,2]
[322958877,1713547844259,-500.0,0.00013698,2]
[322958878,1713547844270,-2634.28,0.00013698,2]
[322958879,1713547844279,-1262.88,0.00013698,2]
[322958880,1713547844288,-1166.31,0.00013698,2]
[322958881,1713547844298,-500.0,0.00013698,2]
[322958882,1713547844307,-1332.33,0.00013698,2]
[322958883,1713547844316,-634.23214155,0.00013698,2]
[322958884,1713547844326,-500.0,0.00013698,2]
[322958885,1713547844336,-712.59,0.00013698,2]
[322958886,1713547844345,-536.28,0.00013698,2]
[322958887,1713547844357,-791.73,0.00013698,2]
[322958888,1713547844367,-500.0,0.00013698,2]
[322958889,1713547844376,-1210.59,0.00013698,2]
[322958890,1713547844385,-500.0,0.00013698,2]
[322958891,1713547844395,-707.96,0.00013698,2]
[322958892,1713547844404,-1285.96,0.00013698,2]
[322958893,1713547844414,-500.0,0.00013698,2]
[322958894,1713547844427,-500.0,0.00013698,2]
[322958895,1713547844436,-500.0,0.00013698,2]
[322958896,1713547844446,-500.0,0.00013698,2]
[322958897,1713547844456,-500.0,0.00013698,2]
[322958898,1713547844465,-500.0,0.00013698,2]
[322958899,1713547844475,-930.65,0.00013698,2]
[322958900,1713547844484,-500.0,0.00013698,2]
[322958901,1713547844493,-876.01,0.00013698,2]
[322958902,1713547844503,-1043.23,0.00013698,2]
[322958903,1713547844512,-500.0,0.00013698,2]
[322958904,1713547844522,-500.0,0.00013698,2]
[322958905,1713547844532,-500.0,0.00013698,2]
[322958906,1713547844541,-500.0,0.00013698,2]
[322958907,1713547844550,-1932.47,0.00013698,2]
[322958908,1713547844561,-500.0,0.00013698,2]
[322958909,1713547844570,-943.25,0.00013698,2]
[322958910,1713547844579,-591.53,0.00013698,2]
[322958911,1713547844589,-500.0,0.00013698,2]
[322958912,1713547844599,-500.0,0.00013698,2]
[322958913,1713547844612,-500.0,0.00013698,2]
[322958914,1713547844620,-500.0,0.00013698,2]
[322958915,1713547844629,-500.0,0.00013698,2]
[322958916,1713547844638,-508.04,0.00013698,2]
[322958917,1713547844647,-500.0,0.00013698,2]
[322958918,1713547844655,-500.0,0.00013698,2]